[Event "NJSK 2024 AmBm"]
[Site "Groningen, Netherlands"]
[Date "2024.04.27"]
[Round "1.6"]
[White "Basa, Manasvita"]
[Black "Woldhuis, Thera"]
[Result "1-0"]
[TimeControl "90min/40moves + 30min + 30sec/move"]
[WhiteElo "1829"]
[BlackElo "1662"]

1. e4 {[%clk 01:30:57]} {[%emt 00:00:02]} e5 {[%clk 01:30:53]} {[%emt
00:00:08]} 2. Nc3 {[%clk 01:31:20]} {[%emt 00:00:06]} Bc5 {[%clk 01:31:16]}
{[%emt 00:00:08]} 3. Bc4 {[%clk 01:31:20]} {[%emt 00:00:30]} d6 {[%clk
01:31:39]} {[%emt 00:00:07]} 4. d3 {[%clk 01:09:05]} {[%emt 00:22:45]} Nc6
{[%clk 01:32:00]} {[%emt 00:00:09]} 5. f4 {[%clk 00:55:09]} {[%emt 00:14:25]}
Bxg1 {[%clk 01:30:44]} {[%emt 00:01:46]} 6. Rxg1 {[%clk 00:54:53]} {[%emt
00:00:47]} Qh4+ {[%clk 01:31:09]} {[%emt 00:00:04]} 7. g3 {[%clk 00:53:13]}
{[%emt 00:02:11]} Qxh2 {[%clk 01:31:30]} {[%emt 00:00:10]} 8. Be3 {[%clk
00:52:35]} {[%emt 00:01:08]} Be6 {[%clk 01:30:48]} {[%emt 00:01:12]} 9. Bxe6
{[%clk 00:40:36]} {[%emt 00:12:29]} fxe6 {[%clk 01:31:11]} {[%emt 00:00:06]} 10.
Qg4 {[%clk 00:40:27]} {[%emt 00:00:39]} Nd4 {[%clk 01:29:36]} {[%emt 00:02:05]}
11. Bxd4 {[%clk 00:38:58]} {[%emt 00:01:59]} exd4 {[%clk 01:30:01]} {[%emt
00:00:05]} 12. Ne2 {[%clk 00:39:12]} {[%emt 00:00:16]} O-O-O {[%clk 01:29:42]}
{[%emt 00:00:50]} 13. Qxg7 {[%clk 00:23:09]} {[%emt 00:16:33]} Nh6 {[%clk
01:30:02]} {[%emt 00:00:10]} 14. Qxd4 {[%clk 00:13:56]} {[%emt 00:09:43]} Kb8
{[%clk 01:29:43]} {[%emt 00:00:49]} 15. Qe3 {[%clk 00:13:09]} {[%emt 00:01:16]}
Ng4 {[%clk 01:29:36]} {[%emt 00:00:37]} 16. Qf3 {[%clk 00:13:31]} {[%emt
00:00:08]} Qh5 {[%clk 01:28:37]} {[%emt 00:01:27]} 17. O-O-O {[%clk 00:12:21]}
{[%emt 00:01:41]} Rdf8 {[%clk 01:26:55]} {[%emt 00:02:12]} 18. Rh1 {[%clk
00:10:27]} {[%emt 00:02:24]} Qg6 {[%clk 01:27:15]} {[%emt 00:00:10]} 19. Rh4
{[%clk 00:09:50]} {[%emt 00:01:07]} h5 {[%clk 01:27:10]} {[%emt 00:00:36]} 20.
Rdh1 {[%clk 00:09:52]} {[%emt 00:00:27]} a6 {[%clk 01:26:11]} {[%emt 00:01:29]}
21. Ng1 {[%clk 00:08:15]} {[%emt 00:02:07]} Ka8 {[%clk 01:21:04]} {[%emt
00:05:38]} 22. Nh3 {[%clk 00:07:42]} {[%emt 00:01:03]} c5 {[%clk 01:21:25]}
{[%emt 00:00:09]} 23. Qe2 {[%clk 00:07:41]} {[%emt 00:00:31]} Qh6 {[%clk
01:20:12]} {[%emt 00:01:43]} 24. Ng5 {[%clk 00:07:48]} {[%emt 00:00:23]} Qg6
{[%clk 01:19:51]} {[%emt 00:00:50]} 25. Qd2 {[%clk 00:07:05]} {[%emt 00:01:13]}
d5 {[%clk 01:18:29]} {[%emt 00:01:53]} 26. Qc3 {[%clk 00:06:27]} {[%emt
00:01:07]} e5 {[%clk 01:17:21]} {[%emt 00:01:39]} 27. exd5 {[%clk 00:05:40]}
{[%emt 00:01:17]} Qf5 {[%clk 01:11:22]} {[%emt 00:06:29]} 28. Ne6 {[%clk
00:04:58]} {[%emt 00:01:11]} Rfg8 {[%clk 01:11:04]} {[%emt 00:00:48]} 29. Qxc5
{[%clk 00:04:20]} {[%emt 00:01:08]} Rh6 {[%clk 01:10:04]} {[%emt 00:01:31]} 30.
Qb6 {[%clk 00:03:33]} {[%emt 00:01:17]} Rc8 {[%clk 01:04:49]} {[%emt 00:05:44]}
31. Nc7+ {[%clk 00:03:35]} {[%emt 00:00:28]} Rxc7 {[%clk 01:04:50]} {[%emt
00:00:30]} 32. Qxc7 {[%clk 00:03:59]} {[%emt 00:00:06]} e4 {[%clk 01:01:19]}
{[%emt 00:04:01]} 33. Re1 {[%clk 00:02:26]} {[%emt 00:02:03]} Qxd5 {[%clk
01:00:19]} {[%emt 00:01:30]} 34. Rxe4 {[%clk 00:02:11]} {[%emt 00:00:45]} Nf6
{[%clk 00:58:44]} {[%emt 00:02:05]} 35. Re5 {[%clk 00:01:05]} {[%emt 00:01:37]}
Qd4 {[%clk 00:58:25]} {[%emt 00:00:48]} 36. Rh1 {[%clk 00:01:19]} {[%emt
00:00:16]} Nd7 {[%clk 00:58:14]} {[%emt 00:00:42]} 37. Re7 {[%clk 00:01:20]}
{[%emt 00:00:29]} Rd6 {[%clk 00:58:39]} {[%emt 00:00:05]} 38. Qc4 {[%clk
00:01:15]} {[%emt 00:00:35]} Qb6 {[%clk 00:58:03]} {[%emt 00:01:06]} 39. Qe4
{[%clk 00:01:08]} {[%emt 00:00:38]} Nf6 {[%clk 00:57:54]} {[%emt 00:00:39]} 40.
Qe3 {[%clk 00:01:15]} {[%emt 00:00:27]} Qc6 {[%clk 00:58:03]} {[%emt 00:00:16]}
41. Re1 {[%clk 00:01:05]} {[%emt 00:00:40]} Rd8 {[%clk 00:57:06]} {[%emt
00:01:28]} 42. Re6 {[%clk 00:00:44]} {[%emt 00:00:52]} Rd6 {[%clk 00:56:33]}
{[%emt 00:01:03]} 43. Rxd6 {[%clk 00:01:01]} {[%emt 00:00:13]} Qxd6 {[%clk
00:56:57]} {[%emt 00:00:07]} 44. Qe6 {[%clk 00:01:05]} {[%emt 00:00:26]} Qd8
{[%clk 00:56:45]} {[%emt 00:00:42]} 45. Re5 {[%clk 00:00:34]} {[%emt 00:01:01]}
Ka7 {[%clk 00:56:50]} {[%emt 00:00:25]} 46. Qe7 {[%clk 00:00:34]} {[%emt
00:00:30]} Qh8 {[%clk 00:56:26]} {[%emt 00:00:54]} 47. Rf5 {[%clk 00:00:39]}
{[%emt 00:00:24]} Ng4 {[%clk 00:56:54]} {[%emt 00:00:02]} 48. Qc5+ {[%clk
00:00:55]} {[%emt 00:00:14]} b6 {[%clk 00:56:22]} {[%emt 00:01:02]} 49. Rf7+
{[%clk 00:01:11]} {[%emt 00:00:14]} Ka8 {[%clk 00:56:16]} {[%emt 00:00:37]} 50.
Qc6+ {[%clk 00:01:36]} {[%emt 00:00:04]} Kb8 {[%clk 00:56:40]} {[%emt
00:00:05]} 51. Qb7# {[%clk 00:01:26]} {[%emt 00:00:03]} 1-0

[Event "NJSK 2024 AmBm"]
[Site "Groningen, Netherlands"]
[Date "2024.04.27"]
[Round "1.7"]
[White "Van Apeldoorn, Vera"]
[Black "Knobbe, Elise"]
[Result "0-1"]
[TimeControl "90min/40moves + 30min + 30sec/move"]
[WhiteElo "1601"]
[BlackElo "1785"]

1. d4 {[%clk 01:30:55]} {[%emt 00:00:04]} f5 {[%clk 01:30:55]} {[%emt
00:00:05]} 2. c4 {[%clk 01:31:09]} {[%emt 00:00:16]} Nf6 {[%clk 01:31:08]}
{[%emt 00:00:17]} 3. Nc3 {[%clk 01:31:18]} {[%emt 00:00:22]} g6 {[%clk
01:31:11]} {[%emt 00:00:26]} 4. Nf3 {[%clk 01:30:45]} {[%emt 00:01:03]} Bg7
{[%clk 01:31:05]} {[%emt 00:00:36]} 5. Bf4 {[%clk 01:29:58]} {[%emt 00:01:17]}
e6 {[%clk 01:29:39]} {[%emt 00:01:56]} 6. e3 {[%clk 01:28:38]} {[%emt
00:01:50]} d6 {[%clk 01:29:15]} {[%emt 00:00:54]} 7. Bd3 {[%emt 00:03:10]} O-O
{[%clk 01:27:09]} {[%emt 00:02:33]} 8. O-O {[%clk 01:25:49]} {[%emt 00:00:42]}
Nbd7 {[%clk 01:25:43]} {[%emt 00:01:56]} 9. Qd2 {[%clk 01:19:27]} {[%emt
00:06:52]} Re8 {[%clk 01:24:07]} {[%emt 00:02:05]} 10. e4 {[%clk 01:15:53]}
{[%emt 00:04:04]} e5 {[%clk 01:22:28]} {[%emt 00:02:09]} 11. dxe5 {[%clk
01:14:25]} {[%emt 00:01:58]} dxe5 {[%clk 01:21:31]} {[%emt 00:01:27]} 12. Bg5
{[%clk 01:06:50]} {[%emt 00:08:05]} f4 {[%clk 01:15:59]} {[%emt 00:06:02]} 13.
Rfe1 {[%clk 01:03:45]} {[%emt 00:03:35]} h6 {[%clk 01:08:24]} {[%emt 00:08:05]}
14. Bxf6 {[%clk 01:04:04]} {[%emt 00:00:11]} Bxf6 {[%clk 01:08:25]} {[%emt
00:00:29]} 15. Rad1 {[%clk 01:01:56]} {[%emt 00:02:39]} c6 {[%clk 01:04:11]}
{[%emt 00:04:44]} 16. b4 {[%clk 00:58:38]} {[%emt 00:03:48]} Nf8 {[%clk
00:59:29]} {[%emt 00:05:11]} 17. c5 {[%clk 00:54:44]} {[%emt 00:04:25]} Bg4
{[%clk 00:51:37]} {[%emt 00:08:21]} 18. Be2 {[%clk 00:50:03]} {[%emt 00:05:11]}
Ne6 {[%clk 00:48:28]} {[%emt 00:03:40]} 19. Qc1 {[%clk 00:45:05]} {[%emt
00:05:29]} Qc7 {[%clk 00:44:32]} {[%emt 00:04:22]} 20. Nd2 {[%clk 00:42:25]}
{[%emt 00:03:12]} Bxe2 {[%clk 00:40:46]} {[%emt 00:04:16]} 21. Rxe2 {[%clk
00:40:48]} {[%emt 00:02:07]} Nd4 {[%clk 00:35:43]} {[%emt 00:05:33]} 22. Ree1
{[%clk 00:40:57]} {[%emt 00:00:21]} Qf7 {[%clk 00:34:40]} {[%emt 00:01:33]} 23.
Qb2 {[%clk 00:37:12]} {[%emt 00:04:15]} Rad8 {[%clk 00:29:58]} {[%emt
00:05:12]} 24. Nb3 {[%clk 00:34:26]} {[%emt 00:03:16]} Kh7 {[%clk 00:25:14]}
{[%emt 00:05:14]} 25. Ne2 {[%clk 00:31:16]} {[%emt 00:03:40]} Qc4 {[%clk
00:21:46]} {[%emt 00:03:54]} 26. Nd2 {[%clk 00:25:56]} {[%emt 00:05:53]} Nxe2+
{[%clk 00:20:20]} {[%emt 00:01:56]} 27. Kh1 {[%clk 00:21:38]} {[%emt 00:04:48]}
Qc3 {[%clk 00:18:36]} {[%emt 00:02:14]} 28. Qxc3 {[%clk 00:15:20]} {[%emt
00:06:48]} Nxc3 {[%clk 00:18:57]} {[%emt 00:00:09]} 29. Rc1 {[%clk 00:14:42]}
{[%emt 00:01:08]} Nxa2 {[%clk 00:17:26]} {[%emt 00:02:02]} 30. Rcd1 {[%clk
00:13:17]} {[%emt 00:01:54]} Nc3 {[%clk 00:16:38]} {[%emt 00:01:17]} 31. Rc1
{[%clk 00:13:28]} {[%emt 00:00:20]} Rxd2 {[%clk 00:16:50]} {[%emt 00:00:18]} 32.
Rxc3 {[%clk 00:13:48]} {[%emt 00:00:10]} Red8 {[%clk 00:16:23]} {[%emt
00:00:57]} 33. Rcc1 {[%clk 00:13:50]} {[%emt 00:00:28]} Rxf2 {[%clk 00:15:53]}
{[%emt 00:00:59]} 34. Kg1 {[%clk 00:12:13]} {[%emt 00:02:08]} Rdd2 {[%clk
00:16:05]} {[%emt 00:00:17]} 35. Red1 {[%clk 00:10:48]} {[%emt 00:01:56]} Rxg2+
{[%clk 00:16:08]} {[%emt 00:00:27]} 36. Kf1 {[%clk 00:10:24]} {[%emt 00:00:54]}
Rxh2 {[%clk 00:16:17]} {[%emt 00:00:20]} 37. Rxd2 {[%clk 00:09:50]} {[%emt
00:01:03]} Rxd2 {[%clk 00:16:34]} {[%emt 00:00:13]} 38. Ra1 {[%clk 00:09:22]}
{[%emt 00:00:58]} a6 {[%clk 00:16:50]} {[%emt 00:00:15]} 39. Ra3 {[%clk
00:09:16]} {[%emt 00:00:35]} g5 {[%clk 00:16:34]} {[%emt 00:00:45]} 40. Rf3
{[%clk 00:08:28]} {[%emt 00:01:19]} g4 {[%clk 00:16:37]} {[%emt 00:00:27]} 41.
Rc3 {[%clk 00:07:46]} {[%emt 00:01:11]} Bh4 {[%clk 00:16:16]} {[%emt 00:00:50]}
42. Rb3 {[%clk 00:07:28]} {[%emt 00:00:50]} f3 {[%clk 00:16:26]} {[%emt
00:00:20]} 43. Re3 {[%clk 00:06:53]} {[%emt 00:01:05]} Rd1+ {[%clk 00:16:46]}
{[%emt 00:00:09]} 44. Re1 {[%clk 00:07:11]} {[%emt 00:00:13]} Rxe1# {[%clk
00:16:39]} {[%emt 00:00:05]} 0-1

[Event "NJSK 2024 AmBm"]
[Site "Groningen, Netherlands"]
[Date "2024.04.27"]
[Round "1.8"]
[White "Tangarife Ramirez, Katja"]
[Black "Yildirim, Azra"]
[Result "1-0"]
[TimeControl "90min/40moves + 30min + 30sec/move"]
[WhiteElo "1742"]
[BlackElo "1597"]

1. Nf3 {[%clk 01:30:57]} {[%emt 00:00:02]} c5 {[%clk 01:30:35]} {[%emt
00:00:26]} 2. e4 {[%clk 01:30:51]} {[%emt 00:00:36]} Nc6 {[%clk 01:30:07]}
{[%emt 00:00:58]} 3. d4 {[%clk 01:30:59]} {[%emt 00:00:21]} d5 {[%clk
01:24:46]} {[%emt 00:05:52]} 4. dxc5 {[%clk 01:24:52]} {[%emt 00:06:37]} Qa5+
{[%clk 01:21:35]} {[%emt 00:03:41]} 5. Nc3 {[%clk 01:10:37]} {[%emt 00:14:44]}
dxe4 {[%clk 01:19:56]} {[%emt 00:02:09]} 6. Ng5 {[%clk 01:04:56]} {[%emt
00:06:11]} Qxc5 {[%clk 01:14:24]} {[%emt 00:06:02]} 7. Ngxe4 {[%clk 00:50:44]}
{[%emt 00:14:42]} Qd4 {[%clk 01:03:45]} {[%emt 00:11:09]} 8. Bd3 {[%clk
00:49:28]} {[%emt 00:01:46]} a6 {[%clk 00:56:59]} {[%emt 00:07:17]} 9. O-O
{[%clk 00:48:03]} {[%emt 00:01:54]} Nf6 {[%clk 00:49:45]} {[%emt 00:07:45]} 10.
Be3 {[%clk 00:45:25]} {[%emt 00:03:08]} Qe5 {[%clk 00:45:14]} {[%emt 00:05:01]}
11. Nxf6+ {[%clk 00:36:13]} {[%emt 00:09:42]} Qxf6 {[%clk 00:43:21]} {[%emt
00:02:23]} 12. Nd5 {[%clk 00:35:23]} {[%emt 00:01:20]} Qe5 {[%clk 00:41:27]}
{[%emt 00:02:24]} 13. Bc4 {[%clk 00:31:43]} {[%emt 00:04:11]} Qd6 {[%clk
00:38:16]} {[%emt 00:03:40]} 14. Bb6 {[%clk 00:25:10]} {[%emt 00:07:02]} Ne5
{[%clk 00:34:02]} {[%emt 00:04:45]} 15. Nc7+ {[%clk 00:23:29]} {[%emt
00:02:11]} Kd7 {[%clk 00:33:59]} {[%emt 00:00:33]} 16. Nxa8 {[%clk 00:20:09]}
{[%emt 00:03:50]} Nxc4 {[%clk 00:33:39]} {[%emt 00:00:49]} 17. Qg4+ {[%clk
00:19:14]} {[%emt 00:01:24]} Qe6 {[%clk 00:32:44]} {[%emt 00:01:26]} 18. Rad1+
{[%clk 00:17:45]} {[%emt 00:02:00]} Nd6 {[%clk 00:31:28]} {[%emt 00:01:46]} 19.
Qa4# {[%clk 00:17:33]} {[%emt 00:00:41]} 1-0

[Event "NJSK 2024 AmBm"]
[Site "Groningen, Netherlands"]
[Date "2024.04.27"]
[Round "1.9"]
[White "Rutten, Lenthe"]
[Black "Oostinga, Elisa"]
[Result "0-1"]
[TimeControl "90min/40moves + 30min + 30sec/move"]
[WhiteElo "1526"]
[BlackElo "1713"]

1. d4 {[%clk 01:30:57]} {[%emt 00:00:02]} d5 {[%clk 01:30:51]} {[%emt
00:00:09]} 2. c4 {[%clk 01:31:21]} {[%emt 00:00:07]} c6 {[%clk 01:31:13]}
{[%emt 00:00:08]} 3. Nc3 {[%clk 01:31:37]} {[%emt 00:00:14]} Nf6 {[%clk
01:30:32]} {[%emt 00:01:12]} 4. Bf4 {[%clk 01:31:14]} {[%emt 00:00:53]} Bf5
{[%clk 01:23:06]} {[%emt 00:07:55]} 5. e3 {[%clk 01:30:24]} {[%emt 00:01:21]}
e6 {[%clk 01:17:57]} {[%emt 00:05:39]} 6. Nf3 {[%clk 01:27:33]} {[%emt
00:03:20]} Be7 {[%clk 01:05:40]} {[%emt 00:12:47]} 7. Bd3 {[%clk 01:22:42]}
{[%emt 00:05:22]} Bxd3 {[%clk 00:59:11]} {[%emt 00:06:59]} 8. Qxd3 {[%clk
01:22:44]} {[%emt 00:00:28]} Nh5 {[%clk 00:50:05]} {[%emt 00:09:36]} 9. Be5
{[%clk 01:18:29]} {[%emt 00:04:46]} f6 {[%clk 00:45:54]} {[%emt 00:04:41]} 10.
Bxb8 {[%clk 01:18:09]} {[%emt 00:00:49]} Rxb8 {[%clk 00:45:15]} {[%emt
00:01:10]} 11. g4 {[%clk 01:16:02]} {[%emt 00:02:37]} e5 {[%clk 00:45:00]}
{[%emt 00:00:46]} 12. dxe5 {[%clk 01:11:21]} {[%emt 00:05:10]} fxe5 {[%clk
00:45:00]} {[%emt 00:00:31]} 13. Nxe5 {[%clk 01:10:12]} {[%emt 00:01:39]} Nf6
{[%clk 00:44:21]} {[%emt 00:01:09]} 14. O-O-O {[%clk 01:08:43]} {[%emt
00:01:59]} Bd6 {[%clk 00:33:20]} {[%emt 00:11:31]} 15. Qf5 {[%clk 01:05:04]}
{[%emt 00:04:08]} Qe7 {[%clk 00:32:13]} {[%emt 00:01:36]} 16. f4 {[%clk
01:04:09]} {[%emt 00:01:26]} O-O {[%clk 00:30:05]} {[%emt 00:02:38]} 17. cxd5
{[%clk 01:00:51]} {[%emt 00:03:48]} Bxe5 {[%clk 00:20:52]} {[%emt 00:09:44]} 18.
Qxe5 {[%clk 01:00:01]} {[%emt 00:01:20]} Qxe5 {[%clk 00:20:42]} {[%emt
00:00:40]} 19. fxe5 {[%clk 01:00:06]} {[%emt 00:00:25]} Nxg4 {[%clk 00:20:53]}
{[%emt 00:00:19]} 20. Rhe1 {[%clk 00:57:12]} {[%emt 00:03:23]} Nxe5 {[%clk
00:18:19]} {[%emt 00:03:04]} 21. d6 {[%clk 00:56:29]} {[%emt 00:01:13]} Rf2
{[%clk 00:13:31]} {[%emt 00:05:17]} 22. Ne4 {[%clk 00:54:07]} {[%emt 00:02:53]}
Rxh2 {[%clk 00:12:26]} {[%emt 00:01:35]} 23. d7 {[%clk 00:54:15]} {[%emt
00:00:22]} Rd8 {[%clk 00:12:15]} {[%emt 00:00:40]} 24. Nc5 {[%clk 00:53:12]}
{[%emt 00:01:34]} b6 {[%clk 00:08:43]} {[%emt 00:04:03]} 25. Rd6 {[%clk
00:52:52]} {[%emt 00:00:49]} bxc5 {[%clk 00:08:36]} {[%emt 00:00:37]} 26. Red1
{[%clk 00:52:47]} {[%emt 00:00:35]} Kf7 {[%clk 00:08:23]} {[%emt 00:00:43]} 27.
a3 {[%clk 00:49:55]} {[%emt 00:03:23]} Ke7 {[%clk 00:08:32]} {[%emt 00:00:20]}
28. R6d2 {[%clk 00:49:27]} {[%emt 00:00:58]} Rxd2 {[%clk 00:08:47]} {[%emt
00:00:15]} 29. Rxd2 {[%clk 00:49:43]} {[%emt 00:00:14]} Rxd7 {[%clk 00:09:01]}
{[%emt 00:00:16]} 30. Rg2 {[%clk 00:49:19]} {[%emt 00:00:53]} g6 {[%clk
00:09:15]} {[%emt 00:00:16]} 0-1

[Event "NJSK 2024 AmBm"]
[Site "Groningen, Netherlands"]
[Date "2024.04.28"]
[Round "2.1"]
[White "Verheij, Dana"]
[Black "Basa, Manasvita"]
[Result "1-0"]
[TimeControl "90min/40moves + 30min + 30sec/move"]
[WhiteElo "1923"]
[BlackElo "1829"]

1. e4 {[%clk 01:30:58]} {[%emt 00:00:02]} e5 {[%clk 01:30:52]} {[%emt
00:00:08]} 2. Bc4 {[%clk 01:31:13]} {[%emt 00:00:15]} Nc6 {[%clk 01:31:15]}
{[%emt 00:00:07]} 3. Nc3 {[%clk 01:31:40]} {[%emt 00:00:03]} Nf6 {[%clk
01:31:38]} {[%emt 00:00:07]} 4. d3 {[%clk 01:31:59]} {[%emt 00:00:11]} Bb4
{[%clk 01:32:01]} {[%emt 00:00:07]} 5. Nge2 {[%clk 01:32:00]} {[%emt 00:00:28]}
d5 {[%clk 01:32:04]} {[%emt 00:00:27]} 6. exd5 {[%clk 01:32:25]} {[%emt
00:00:05]} Nxd5 {[%clk 01:32:14]} {[%emt 00:00:21]} 7. O-O {[%clk 01:32:28]}
{[%emt 00:00:27]} Be6 {[%clk 01:32:40]} {[%emt 00:00:04]} 8. Bxd5 {[%clk
01:32:09]} {[%emt 00:00:48]} Bxd5 {[%clk 01:32:53]} {[%emt 00:00:17]} 9. f4
{[%clk 01:31:40]} {[%emt 00:00:59]} Qd6 {[%clk 00:58:24]} {[%emt 00:34:59]} 10.
fxe5 {[%clk 01:17:11]} {[%emt 00:15:00]} Nxe5 {[%clk 00:58:45]} {[%emt
00:00:09]} 11. Nxd5 {[%clk 01:15:31]} {[%emt 00:02:09]} Qxd5 {[%clk 00:59:00]}
{[%emt 00:00:15]} 12. Nf4 {[%clk 01:09:49]} {[%emt 00:06:13]} Qd6 {[%clk
00:46:17]} {[%emt 00:13:13]} 13. c3 {[%clk 01:06:28]} {[%emt 00:03:51]} Bc5+
{[%clk 00:46:41]} {[%emt 00:00:06]} 14. d4 {[%clk 01:06:46]} {[%emt 00:00:13]}
O-O-O {[%clk 00:47:04]} {[%emt 00:00:06]} 15. Qe2 {[%clk 00:50:45]} {[%emt
00:16:31]} Bb6 {[%clk 00:47:22]} {[%emt 00:00:12]} 16. Kh1 {[%clk 00:49:09]}
{[%emt 00:02:06]} Ng6 {[%clk 00:44:07]} {[%emt 00:03:44]} 17. Nh5 {[%clk
00:41:59]} {[%emt 00:07:40]} Rhe8 {[%clk 00:33:14]} {[%emt 00:11:23]} 18. Qg4+
{[%clk 00:37:26]} {[%emt 00:05:04]} Kb8 {[%clk 00:33:34]} {[%emt 00:00:10]} 19.
Nxg7 {[%clk 00:35:17]} {[%emt 00:02:38]} Qf6 {[%clk 00:31:21]} {[%emt
00:02:44]} 20. Bh6 {[%clk 00:33:58]} {[%emt 00:01:49]} Ne5 {[%clk 00:22:40]}
{[%emt 00:09:11]} 21. dxe5 {[%clk 00:20:30]} {[%emt 00:13:57]} Qxh6 {[%clk
00:22:53]} {[%emt 00:00:17]} 22. Nxe8 {[%clk 00:20:48]} {[%emt 00:00:12]} Rxe8
{[%clk 00:23:16]} {[%emt 00:00:07]} 23. Qd7 {[%clk 00:15:55]} {[%emt 00:05:23]}
Rg8 {[%clk 00:22:34]} {[%emt 00:01:13]} 24. Qxf7 {[%clk 00:15:59]} {[%emt
00:00:25]} Rc8 {[%clk 00:20:16]} {[%emt 00:02:48]} 25. e6 {[%clk 00:16:19]}
{[%emt 00:00:10]} Bc5 {[%clk 00:20:41]} {[%emt 00:00:05]} 26. e7 {[%clk
00:14:16]} {[%emt 00:02:33]} Bd6 {[%clk 00:18:58]} {[%emt 00:02:13]} 27. h3
{[%clk 00:10:35]} {[%emt 00:04:11]} Qe3 {[%clk 00:18:52]} {[%emt 00:00:36]} 28.
Qg7 {[%clk 00:08:30]} {[%emt 00:02:35]} Qxe7 {[%clk 00:11:58]} {[%emt
00:07:24]} 29. Qxe7 {[%clk 00:08:54]} {[%emt 00:00:06]} Bxe7 {[%clk 00:12:23]}
{[%emt 00:00:05]} 30. Rf7 {[%clk 00:09:11]} {[%emt 00:00:13]} Bd6 {[%clk
00:12:32]} {[%emt 00:00:21]} 31. Rxh7 {[%clk 00:09:26]} {[%emt 00:00:15]} Re8
{[%clk 00:12:51]} {[%emt 00:00:11]} 32. Rf1 {[%clk 00:08:49]} {[%emt 00:01:08]}
b6 {[%clk 00:13:11]} {[%emt 00:00:10]} 33. Rhf7 {[%clk 00:07:58]} {[%emt
00:01:21]} a5 {[%clk 00:12:43]} {[%emt 00:00:58]} 34. g4 {[%clk 00:08:11]}
{[%emt 00:00:16]} Bc5 {[%clk 00:08:31]} {[%emt 00:04:43]} 35. Kg2 {[%clk
00:08:03]} {[%emt 00:00:37]} Re2+ {[%clk 00:08:52]} {[%emt 00:00:09]} 36. R1f2
{[%clk 00:08:03]} {[%emt 00:00:30]} Bxf2 {[%clk 00:08:59]} {[%emt 00:00:23]} 37.
Rxf2 {[%clk 00:08:29]} {[%emt 00:00:04]} Re3 {[%clk 00:07:48]} {[%emt
00:01:41]} 38. h4 {[%clk 00:08:29]} {[%emt 00:00:30]} c5 {[%clk 00:07:40]}
{[%emt 00:00:38]} 39. h5 {[%clk 00:07:49]} {[%emt 00:01:11]} Re6 {[%clk
00:06:56]} {[%emt 00:01:14]} 40. Rf7 {[%clk 00:07:17]} {[%emt 00:01:01]} Kc8
{[%clk 00:07:05]} {[%emt 00:00:21]} 41. Kf3 {[%clk 00:06:40]} {[%emt 00:01:07]}
Kd8 {[%clk 00:07:23]} {[%emt 00:00:12]} 42. g5 {[%clk 00:06:29]} {[%emt
00:00:41]} Re5 {[%clk 00:06:37]} {[%emt 00:01:17]} 43. Kf4 {[%clk 00:06:41]}
{[%emt 00:00:18]} Re2 {[%clk 00:06:58]} {[%emt 00:00:09]} 44. g6 {[%clk
00:05:39]} {[%emt 00:01:32]} Ke8 {[%clk 00:07:20]} {[%emt 00:00:08]} 45. Rf5
{[%clk 00:05:41]} {[%emt 00:00:28]} Rxb2 {[%clk 00:06:26]} {[%emt 00:01:24]} 46.
g7 {[%clk 00:04:43]} {[%emt 00:01:27]} Rf2+ {[%clk 00:06:25]} {[%emt 00:00:31]}
47. Ke5 {[%clk 00:04:22]} {[%emt 00:00:51]} Rxf5+ {[%clk 00:06:35]} {[%emt
00:00:21]} 48. Kxf5 {[%clk 00:04:34]} {[%emt 00:00:18]} Kf7 {[%clk 00:07:03]}
49. h6 {[%clk 00:04:39]} {[%emt 00:00:25]} b5 {[%clk 00:07:01]} {[%emt
00:00:32]} 50. Ke4 {[%clk 00:04:48]} {[%emt 00:00:20]} b4 {[%clk 00:06:28]}
{[%emt 00:01:04]} 51. cxb4 {[%clk 00:04:26]} {[%emt 00:00:52]} cxb4 {[%clk
00:06:52]} {[%emt 00:00:06]} 52. Kd3 {[%clk 00:04:40]} {[%emt 00:00:16]} a4
{[%clk 00:06:55]} {[%emt 00:00:28]} 53. Kc4 {[%clk 00:04:33]} {[%emt 00:00:36]}
1-0